bitfinex/quotes_ETHUSD_20251111
["timestamp","ask_amount","ask_price","bid_price","bid_amount"]
[1762895902681,1.03981842,3442.3,3442.2,1.1514]
[1762895903279,1.03981842,3442.3,3441.7,0.4534]
[1762895903280,0.5,3442.1,3441.7,0.4534]
[1762895903480,0.53981842,3442.0,3441.7,0.4534]
[1762895903710,0.53981842,3441.9,3441.7,0.4534]
[1762895903922,0.53981842,3441.8,3441.7,0.4534]
[1762895904286,0.53981842,3441.8,3441.7,0.9138]
[1762895905383,0.26998409,3441.8,3441.7,1.36485663]
[1762895905577,0.26998409,3441.8,3441.7,0.9138]
[1762895906579,0.26998409,3441.8,3441.7,3.81934086]
[1762895907706,1.1337408,3443.0,3441.7,3.81934086]
[1762895907707,0.5,3442.7,3441.7,3.81932601]
[1762895907906,0.53961024,3442.6,3441.8,1.22850325]
[1762895908103,0.53961024,3442.5,3441.8,1.22850325]
[1762895908306,0.53961024,3442.4,3441.9,0.4869]
[1762895908621,0.53961024,3442.3,3441.9,0.4869]
[1762895908796,0.53961024,3442.2,3441.9,0.4869]
[1762895909006,0.53961024,3442.1,3442.0,0.33923543]
[1762895909515,0.53961024,3442.1,3442.0,1.30523543]
[1762895909926,0.53989812,3442.1,3442.0,1.30523543]
[1762895910133,0.53989812,3442.1,3442.0,1.3342883]
[1762895910431,0.26994906,3442.1,3442.0,4.61602705]
[1762895911664,0.5,3443.7,3442.1,1.1337408]
[1762895911941,0.54024326,3443.6,3442.6,0.405504]
[1762895912131,0.54024326,3443.5,3442.8,0.405504]
[1762895912331,0.1915,3443.8,3442.8,0.405504]
[1762895912332,0.54024326,3443.4,3442.9,17.40448121]
[1762895912528,0.54024326,3443.3,3443.0,2.18925766]
[1762895912731,0.54024326,3443.2,3443.0,2.18925766]
[1762895912942,1.50994326,3443.1,3442.3,0.4869]
[1762895913106,0.54024326,3443.0,3442.4,15.191]
[1762895913307,0.1915,3443.8,3442.4,15.191]
[1762895913308,0.54024326,3442.9,3442.5,1.56779]
[1762895913521,0.54024326,3442.8,3442.5,1.56779]
[1762895913728,0.54024326,3442.7,3442.5,1.56779]
[1762895913927,0.54024326,3442.6,3442.5,1.56779]
[1762895914311,0.54024326,3442.6,3442.5,2.04689]
[1762895914735,0.54024326,3442.6,3442.5,2.73789]
[1762895915454,0.54024326,3442.6,3442.5,0.691]
[1762895915743,1.00994326,3442.6,3442.1,0.0874]
[1762895915945,0.5,3442.4,3442.2,0.691]
[1762895916146,0.54024326,3442.3,3442.2,0.691]
[1762895916344,1.50994326,3442.3,3442.2,0.691]
[1762895916544,1.98174326,3442.3,3442.2,0.691]
[1762895916719,1.50994326,3442.3,3442.2,0.691]
[1762895916908,0.54024326,3442.3,3442.2,0.691]
[1762895917114,0.54024326,3442.3,3442.2,1.657]
[1762895917524,0.54024326,3442.3,3442.1,0.0838]
[1762895917525,0.54024326,3442.3,3442.1,0.001]
[1762895917710,0.5,3442.5,3442.2,0.691]
[1762895917906,0.54083252,3442.4,3442.2,0.691]
[1762895918236,0.54083252,3442.3,3442.2,0.691]
[1762895919605,0.5,3442.2,3442.1,0.001]
[1762895919810,1.04083252,3442.2,3442.1,0.692]
[1762895920867,0.54083252,3442.2,3442.1,1.7408]
[1762895921427,0.54083252,3442.2,3442.1,1.2539]
[1762895921628,0.54083252,3442.2,3442.1,1.91498]
[1762895922661,0.54083252,3442.2,3442.1,1.1711]
[1762895922872,1.51053252,3442.2,3442.1,0.692]
[1762895923169,1.04083252,3442.2,3442.1,0.692]
[1762895923868,0.54083252,3442.2,3442.1,1.1711]
[1762895924053,0.54083252,3442.2,3442.1,1.0498]
[1762895924230,0.54083252,3442.2,3442.1,4.64600321]
[1762895924432,0.54083252,3442.2,3442.1,5.40413829]
[1762895925233,0.54083252,3442.2,3442.1,5.80964229]
[1762895925434,0.1915,3443.8,3442.8,2.90457874]
[1762895925732,2.9040033,3443.6,3442.9,0.691]
[1762895925944,2.90420335,3443.3,3443.0,0.691]
[1762895926147,0.5,3443.1,3443.0,0.691]
[1762895926346,1.51163254,3443.1,3443.0,0.691]
[1762895926557,1.48343254,3443.1,3442.1,0.0838]
[1762895926759,0.5,3442.7,3442.2,0.691]
[1762895927068,0.54193254,3442.6,3442.2,0.691]
[1762895927268,0.54193254,3442.5,3442.2,0.691]
[1762895927467,0.54193254,3442.4,3442.2,0.691]
[1762895927642,0.54193254,3442.3,3442.2,0.691]
[1762895928047,0.54193254,3442.3,3442.2,1.1701]
[1762895931848,0.54193254,3442.3,3442.2,0.691]
[1762895933241,0.54193254,3442.3,3442.2,1.1701]
[1762895933984,0.54297523,3442.3,3442.2,1.1701]
[1762895934646,0.54297523,3442.3,3442.2,1.657]
[1762895935581,0.54297523,3442.3,3442.2,6.47672516]
[1762895936576,0.54297523,3442.3,3442.2,6.88222916]
[1762895937984,0.54297523,3442.3,3442.2,1.371504]
[1762895938180,0.54297523,3442.3,3442.2,16.561504]
[1762895938363,0.54297523,3442.3,3442.2,19.46662281]
[1762895939494,0.54297523,3442.3,3442.2,16.561504]
[1762895939685,0.54297523,3442.3,3442.2,2.061504]
[1762895939981,0.54297523,3442.3,3442.2,1.1691]
[1762895940199,0.54297523,3442.3,3442.2,4.53581881]
[1762895940399,0.54301525,3442.3,3442.2,1.6307]
[1762895940701,0.54301525,3442.3,3442.2,5.11267281]
[1762895940897,0.54301525,3442.3,3442.2,8.36733869]
[1762895942169,0.1859,3444.2,3442.8,2.90457897]
[1762895942170,0.5,3443.7,3442.8,2.90457897]
[1762895942502,2.90411655,3443.4,3442.9,3.94466588]
[1762895942702,0.5,3443.1,3443.0,0.69]
[1762895942906,1.04419604,3443.1,3443.0,0.69]
[1762895943094,1.98449604,3443.1,3443.0,0.69]
[1762895943290,2.90444379,3443.0,3442.9,3.25466588]
[1762895943492,0.5,3442.8,3442.2,3.25466588]
[1762895943691,0.54419604,3442.7,3442.3,3.94466588]
[1762895943890,0.54420644,3442.6,3442.3,3.94466588]
[1762895944102,0.54420644,3442.5,3442.3,3.94466588]
[1762895944303,0.4688,3443.0,3442.3,3.94466588]
[1762895944304,0.54422868,3442.4,3442.3,6.83011036]
[1762895944542,0.54422868,3442.4,3442.3,10.67074478]
[1762895947137,0.54422868,3442.4,3442.3,8.1908043]
[1762895947283,0.54422868,3442.4,3442.3,22.6908043]
[1762895950623,0.54422868,3442.4,3442.3,8.1908043]
[1762895951126,0.54422868,3442.4,3442.3,22.6908043]
[1762895951689,0.54422868,3442.4,3442.3,17.75466588]
[1762895951898,1.01572868,3442.4,3442.3,3.94466588]
[1762895952095,0.54422868,3442.4,3442.3,4.88126588]
[1762895952525,0.54422868,3442.4,3442.3,7.7863003]
[1762895952723,0.54422868,3442.4,3442.3,9.26921785]
[1762895955224,0.27211434,3442.4,3442.3,10.40295865]
[1762895955425,0.5,3443.6,3442.9,2.9044959]
[1762895955626,0.5443452,3443.5,3443.0,3.97371031]
[1762895955837,0.5443452,3443.4,3443.0,3.97371031]
[1762895956041,0.5443452,3443.3,3443.0,3.97371031]
[1762895956249,0.5443452,3443.2,3443.0,3.97371031]
[1762895956441,0.5443452,3443.1,3443.0,3.97371031]
[1762895956746,0.5443452,3443.1,3443.0,3.94466588]
[1762895957050,1.0158452,3443.1,3443.0,3.94466588]
[1762895957212,1.4846452,3443.1,3443.0,3.25466588]
[1762895957408,2.13310972,3443.1,3443.0,3.94466588]
[1762895957612,5.03746916,3443.1,3443.0,3.75558295]
[1762895958435,0.5,3442.7,3442.3,0.001]
[1762895958765,0.5443452,3442.6,3442.4,0.69]
[1762895959062,0.5443452,3442.5,3442.4,0.69]
[1762895959246,1.0158452,3442.5,3442.4,0.69]
[1762895959452,1.4846452,3442.5,3442.4,0.69]
[1762895961251,0.5443452,3442.5,3442.4,1.164]
[1762895962366,0.5443452,3442.5,3442.4,4.97714726]
[1762895962949,0.5443452,3442.5,3442.4,5.38265126]
[1762895964670,1.3252408,3443.8,3442.8,2.90453692]
[1762895964671,0.9688,3443.7,3442.8,2.90453692]
[1762895964843,0.54439064,3443.6,3443.0,2.90444379]
[1762895965053,0.54439064,3443.5,3443.2,2.90426727]
[1762895965275,0.54439064,3443.4,3443.3,0.0290419]
[1762895965782,1.47089064,3443.4,3443.1,3.75458295]
[1762895965930,0.0191,3443.2,3443.1,0.689]
[1762895966135,0.56349064,3443.2,3443.1,0.689]
[1762895966489,0.54439064,3443.2,3443.1,5.15886344]
[1762895966787,0.002,3444.0,3443.8,2.90376223]
[1762895967115,0.002,3444.0,3443.9,0.689]
[1762895967227,0.5460665,3444.0,3443.9,0.689]
[1762895967431,1.0206665,3444.0,3443.4,1.1337408]
[1762895967627,0.7466665,3443.9,3443.5,0.689]
[1762895967830,0.5440665,3443.8,3443.7,2.90385341]
[1762895968058,0.5440665,3443.8,3443.7,0.689]
[1762895968251,0.5440665,3443.8,3443.7,4.56965341]
[1762895968450,0.5440665,3443.8,3443.7,5.75446065]
[1762895968655,0.002,3444.0,3443.9,2.90368477]
[1762895968842,0.002,3444.0,3443.9,0.4937]
[1762895968843,0.5451806,3444.0,3443.9,0.4937]
[1762895969059,0.5451806,3444.0,3443.9,3.39738477]
[1762895969945,0.5451806,3444.0,3443.9,4.54245542]
[1762895970269,0.002,3444.0,3443.9,5.05459226]
[1762895971067,0.002,3444.0,3443.9,5.02555542]
[1762895973347,0.002,3444.0,3443.9,6.15929622]
[1762895973988,0.002,3444.0,3443.9,4.54245542]
[1762895974139,0.002,3444.0,3443.9,3.99818877]
[1762895974339,0.002,3444.0,3443.9,4.49188877]
[1762895974557,0.002,3444.0,3443.9,1.588204]
[1762895974783,0.4646,3444.0,3443.9,0.689]
[1762895975010,0.9189,3444.0,3443.9,0.689]
[1762895975920,0.4646,3444.0,3443.9,3.59268477]
[1762895976359,0.4646,3444.0,3443.9,5.62464237]
[1762895976360,0.002,3444.0,3443.9,5.62464237]
[1762895976566,0.002,3444.0,3443.9,1.5488576]
[1762895976772,0.002,3444.0,3443.9,5.14154237]
[1762895976977,0.002,3444.0,3443.9,5.62464237]
[1762895977460,0.002,3444.0,3443.9,5.14154237]
[1762895978284,0.002,3444.0,3443.9,0.689]
[1762895978499,0.4646,3444.0,3443.9,0.689]
[1762895978705,0.4646,3444.0,3443.9,3.59268477]
[1762895979005,0.4646,3444.0,3443.9,0.689]
[1762895979308,0.4646,3444.0,3443.9,3.59268477]
[1762895979489,0.002,3444.0,3443.9,3.59268477]
[1762895980566,0.4646,3444.0,3443.9,0.689]
[1762895980994,0.9189,3444.0,3443.9,0.689]
[1762895981905,0.4646,3444.0,3443.9,0.689]
[1762895982108,0.9189,3444.0,3443.9,0.689]
[1762895982407,1.46020349,3444.0,3443.9,0.689]
[1762895982567,1.65622384,3444.0,3443.9,0.689]
[1762895984492,5.0598243,3444.0,3443.9,0.689]
[1762895985500,6.6935651,3444.0,3443.9,0.689]
[1762895987016,2.90390942,3443.7,3443.5,0.429]
[1762895987195,3.94524122,3443.6,3443.5,0.429]
[1762895987517,3.94984122,3443.6,3443.5,0.429]
[1762895987820,4.40414122,3443.6,3443.5,0.429]
[1762895988002,4.71075556,3443.6,3443.5,0.429]
[1762895988386,4.71075556,3443.6,3443.1,0.688]
[1762895988387,3.40418248,3443.4,3443.1,0.688]
[1762895988615,3.40427509,3443.2,3443.1,0.688]
[1762895988912,4.44097858,3443.2,3443.1,0.688]
[1762895989078,5.63947469,3443.2,3443.1,0.688]
[1762895989908,6.77321549,3443.2,3443.1,0.688]
[1762895990123,3.8689404,3443.2,3443.1,0.688]
[1762895990321,3.09224429,3443.2,3443.1,0.688]
[1762895991580,5.99651938,3443.2,3443.1,0.688]
[1762895996115,3.09224429,3443.2,3443.1,0.688]
[1762895997315,5.99651938,3443.2,3443.1,0.688]
[1762895998039,6.49651938,3443.2,3443.1,0.688]
[1762895998246,4.53810024,3443.1,3443.0,0.001]
[1762895998405,5.54170373,3443.1,3443.0,0.001]
[1762895998806,2.63734429,3443.1,3443.0,0.001]
[1762895999223,5.54170373,3443.1,3443.0,0.001]
[1762895999423,3.53194001,3443.1,3443.0,0.001]
[1762895999621,5.54170373,3443.1,3443.0,0.001]
[1762896000334,2.63734429,3443.1,3443.0,0.001]
[1762896000535,5.54170373,3443.1,3443.0,0.001]
[1762896001134,6.04170373,3443.1,3443.0,0.001]
[1762896001540,2.17924429,3443.1,3443.0,0.001]
[1762896001943,2.39716872,3443.1,3443.0,0.001]
[1762896002247,2.85526872,3443.1,3443.0,0.001]
[1762896002645,5.25962816,3443.1,3443.0,0.001]
[1762896002947,5.75962816,3443.1,3443.0,0.001]
[1762896003317,1.26342792,3443.1,3443.0,0.001]
[1762896003517,0.54130349,3443.1,3443.0,0.4729]
[1762896003706,0.54130349,3443.1,3443.0,0.9246]
[1762896004546,0.4601,3444.0,3443.1,0.405504]
[1762896004547,0.002,3444.0,3443.1,0.405504]
[1762896004704,0.002,3444.0,3443.9,0.6539]
[1762896004904,0.27277842,3444.0,3443.9,1.3419]
[1762896005231,0.27277842,3444.0,3443.9,1.7936]
[1762896005436,0.5435571,3444.0,3443.9,0.688]
[1762896005744,0.5435571,3444.0,3443.9,1.1599]
[1762896006518,0.5435571,3444.0,3443.9,1.6116]
[1762896007445,0.5435571,3444.0,3443.9,4.96683528]
[1762896007668,0.27277842,3444.0,3443.9,5.37233928]
[1762896007809,0.002,3444.0,3443.9,5.37233928]
[1762896008005,0.002,3444.0,3443.9,6.50608008]
[1762896008368,0.002,3444.0,3443.9,2.46865451]
[1762896008582,0.002,3444.0,3443.9,4.92078877]
[1762896009875,0.002,3444.0,3443.9,0.4719]
[1762896010070,0.002,3444.0,3443.9,0.688]
[1762896010467,0.002,3444.0,3443.9,1.1599]
[1762896011193,0.002,3444.0,3443.9,0.688]
[1762896011344,0.4787,3444.0,3443.9,0.688]
[1762896011540,0.74955651,3444.0,3443.9,0.688]
[1762896011735,0.5437189,3444.0,3443.9,1.1599]
[1762896012325,0.5437189,3444.0,3443.9,4.51528477]
[1762896012486,0.5437189,3444.0,3443.9,5.25719797]
[1762896012793,0.5437189,3444.0,3443.9,0.688]
[1762896012941,1.0204189,3444.0,3443.9,0.688]
[1762896013774,0.5437189,3444.0,3443.9,0.688]
[1762896014656,1.4785189,3444.0,3443.9,0.688]
[1762896015043,0.4787,3444.0,3443.9,0.688]
[1762896015498,0.74950245,3444.0,3443.9,0.688]
[1762896015644,0.74950254,3444.0,3443.9,0.688]
[1762896015970,0.4787,3444.0,3443.9,0.688]
[1762896016284,0.002,3444.0,3443.9,1.1599]
[1762896017974,0.002,3444.0,3443.9,4.51528477]
[1762896018288,0.002,3444.0,3443.9,5.27337154]
[1762896018640,0.002,3444.0,3443.9,5.67887554]
[1762896019707,0.002,3445.1,3444.6,3.37499469]
[1762896019913,0.002,3445.1,3445.0,11.65953634]
[1762896020205,0.002,3445.8,3445.4,4.44166541]
[1762896020365,0.15159815,3447.0,3446.4,0.405504]
[1762896020567,0.15159815,3447.0,3446.5,0.688]
[1762896020818,0.15159815,3447.0,3446.7,2.90132495]
[1762896020980,0.15159815,3447.0,3446.8,0.4719]
[1762896021299,0.15159815,3447.0,3446.8,0.9236]
[1762896021511,0.15159815,3447.0,3446.8,3.82484173]
[1762896023264,0.15159815,3447.0,3446.8,4.51184173]
[1762896023468,0.002,3447.3,3446.8,1.1589]
[1762896024770,0.002,3447.3,3446.5,14.5]
[1762896024771,1.1183,3446.9,3446.5,14.5]
[1762896025071,0.6602,3446.9,3446.6,0.687]
[1762896025371,0.002,3446.9,3446.6,0.687]
[1762896025767,0.6615,3446.9,3446.6,0.687]
[1762896025972,0.002,3446.9,3446.6,0.687]
[1762896026772,0.47,3446.7,3446.6,0.687]
[1762896029919,0.1971,3446.9,3446.6,0.687]
[1762896031721,0.002,3446.9,3446.6,0.687]
[1762896032080,0.6615,3446.9,3446.6,0.687]
[1762896032282,0.47,3446.7,3446.6,0.687]
[1762896032984,0.6615,3446.9,3446.6,0.687]
[1762896033515,0.47,3446.7,3446.6,0.687]
[1762896033902,0.9344,3446.7,3446.6,0.687]
[1762896034098,0.47,3446.7,3446.6,0.687]
[1762896034513,0.9344,3446.7,3446.6,0.687]
[1762896034833,4.87410454,3446.7,3446.6,0.687]
[1762896035040,5.27736749,3446.7,3446.6,0.687]
[1762896035246,2.37604159,3446.7,3446.6,0.687]
[1762896035389,5.27736749,3446.7,3446.6,0.687]
[1762896035908,1.00837864,3446.7,3446.6,0.687]
[1762896036229,4.37410454,3446.7,3446.6,0.687]
[1762896036790,1.97277864,3446.7,3446.6,0.687]
[1762896039203,4.87410454,3446.7,3446.6,0.687]
[1762896039523,3.40141008,3446.6,3446.5,0.687]
[1762896039730,3.93978872,3446.6,3446.5,0.687]
[1762896040034,5.67144962,3446.6,3446.5,0.687]
[1762896041041,2.77003954,3446.6,3446.5,0.687]
[1762896041195,4.87418872,3446.6,3446.5,0.687]
[1762896041627,1.97277864,3446.6,3446.5,0.687]
[1762896042296,4.87418872,3446.6,3446.5,0.687]
[1762896042715,1.97277864,3446.6,3446.5,0.687]
[1762896043225,4.87418872,3446.6,3446.5,0.687]
[1762896043744,0.53837864,3446.6,3446.5,1.6295]
[1762896043944,0.53837864,3446.6,3446.5,1.79245]
[1762896044298,0.53837864,3446.6,3446.5,1.6295]
[1762896044999,1.00837864,3446.6,3446.5,0.687]
[1762896045501,0.53837864,3446.6,3446.5,0.687]
[1762896045817,0.53837864,3446.6,3446.5,1.1746]
[1762896047939,0.53837864,3446.6,3446.5,1.6295]
[1762896048147,0.53837864,3446.6,3446.5,4.53099426]
[1762896048438,0.53837864,3446.6,3446.5,1.6295]
[1762896048614,0.53837864,3446.6,3446.5,0.687]
[1762896048813,1.00837864,3446.6,3446.5,0.686]
[1762896049333,1.00837864,3446.6,3445.8,17.40300522]
[1762896049334,2.90161879,3446.4,3445.8,0.001]
[1762896049541,0.0231,3446.2,3445.9,0.686]
[1762896049736,0.53837864,3446.1,3445.9,0.686]
[1762896049948,0.53837864,3446.0,3445.9,0.686]
[1762896050349,0.53837864,3446.0,3445.9,1.1736]
[1762896052164,1.00837864,3446.0,3445.8,0.001]
[1762896052344,0.5,3446.4,3445.9,1.1736]
[1762896052652,0.54355852,3446.3,3445.9,1.1736]
[1762896052953,0.54355852,3446.2,3445.9,1.1736]
[1762896053118,0.54355852,3446.1,3445.9,1.1736]
[1762896053450,0.002,3446.7,3446.0,3.7622832]
[1762896053662,0.5435454,3446.6,3446.0,4.2498832]
[1762896053852,0.5435454,3446.5,3446.1,2.90183105]
[1762896054048,0.5435454,3446.4,3446.1,2.90183105]
[1762896054247,0.002,3446.7,3446.0,0.860404]
[1762896054248,0.5435454,3446.3,3446.0,0.860404]
[1762896054448,0.5435454,3446.2,3446.1,3.98676391]
[1762896054822,0.5435454,3446.2,3446.1,4.47436391]
[1762896057166,0.5435454,3446.2,3446.1,5.16036391]
[1762896058241,0.2717727,3446.2,3446.1,5.16036391]
[1762896058468,0.2717727,3446.2,3446.1,19.66036391]
[1762896058741,0.002,3446.6,3446.5,3.30699826]
[1762896058969,0.54556782,3446.6,3446.5,5.07735645]
[1762896059272,0.54556782,3446.6,3446.5,5.54205645]
[1762896059577,0.54556782,3446.6,3446.5,6.70481219]
[1762896059784,0.002,3446.6,3446.5,6.67579725]
[1762896061344,1e-08,3447.5,3447.4,0.990504]
[1762896061544,1e-08,3447.5,3447.4,12.564652]
[1762896061739,1e-08,3447.5,3447.4,13.35244927]
[1762896062073,1e-08,3447.5,3447.4,14.03564963]
[1762896062256,1e-08,3447.5,3447.4,29.34966106]
[1762896062787,1e-08,3447.5,3447.4,29.91707481]
[1762896064278,1e-08,3447.5,3447.4,28.66366106]
[1762896064485,1e-08,3447.5,3447.4,29.34966106]
[1762896068492,1e-08,3447.5,3447.4,29.94335417]
[1762896069305,0.002,3448.1,3447.5,4.43989744]
[1762896069506,0.002,3448.1,3447.5,8.25964977]
[1762896070031,0.002,3448.1,3447.5,22.75964977]
[1762896070194,0.002,3448.1,3447.5,25.01364977]
[1762896071092,0.002,3448.1,3447.7,4.43972918]
[1762896071317,0.002,3448.1,3447.7,5.58922918]
[1762896071494,0.1947,3448.9,3448.2,2.9000638]
[1762896071694,0.1947,3448.9,3448.2,19.8653046]
[1762896072014,0.6629,3448.9,3448.2,19.8653046]
[1762896072717,0.6629,3448.9,3448.2,20.3300046]
[1762896072882,0.6629,3448.9,3448.2,18.9973046]
[1762896073077,0.4682,3448.7,3448.2,20.0888086]
[1762896073283,0.4682,3448.7,3448.2,21.1271371]
[1762896074317,0.1947,3448.9,3448.2,21.1271371]
[1762896074623,0.6629,3448.9,3448.2,21.1271371]
[1762896074839,0.6629,3448.9,3447.8,2.90040025]
[1762896074840,0.4474,3448.3,3447.8,2.90040025]
[1762896074983,0.002,3448.3,3448.2,2.9000638]
[1762896075305,0.002,3448.3,3448.2,3.9905678]
[1762896075493,0.002,3448.3,3448.2,7.17121398]
[1762896075697,0.002,3448.3,3448.2,8.30495478]
[1762896076038,0.002,3448.3,3448.2,7.84025478]
[1762896076176,0.002,3448.3,3448.2,8.30495478]
[1762896076817,0.002,3448.3,3448.2,6.0525086]
[1762896077023,0.002,3448.3,3448.2,20.5525086]
[1762896077727,0.002,3448.7,3448.2,20.5525086]
[1762896077728,0.002,3448.7,3448.6,3.30523142]
[1762896077879,0.002,3448.7,3448.6,12.41213528]
[1762896078223,0.002,3448.7,3448.6,14.74449858]
[1762896079096,0.002,3448.7,3448.6,14.27979858]
[1762896079492,0.002,3448.7,3448.6,12.41213528]
[1762896080113,0.002,3448.7,3448.6,12.87683528]
[1762896080716,0.002,3448.7,3448.6,12.41213528]
[1762896080918,0.4474,3448.7,3448.6,1.090504]
[1762896081083,0.002,3448.7,3448.6,4.45373142]
[1762896081622,0.002,3448.7,3448.6,18.95373142]
[1762896083306,0.002,3448.7,3448.6,21.25246043]
[1762896083506,0.002,3448.7,3448.6,18.35273301]
[1762896083850,0.002,3448.7,3448.6,21.25246043]
[1762896084744,0.4474,3448.7,3448.6,18.49023142]
[1762896085523,0.002,3448.7,3448.6,18.49023142]
[1762896085727,0.4474,3448.7,3448.6,14.5]
[1762896085912,0.9001,3448.7,3448.6,0.685]
[1762896086924,0.4474,3448.7,3448.6,3.58472742]
[1762896087122,0.71792219,3448.7,3448.6,3.58472742]
[1762896087334,0.71792219,3448.7,3448.6,0.685]
[1762896088157,1.17062219,3448.7,3448.6,0.685]
[1762896088314,1.44161993,3448.7,3448.6,0.685]
[1762896088935,0.98891993,3448.7,3448.6,0.685]
[1762896089135,1.44161993,3448.7,3448.6,0.685]
[1762896090074,0.98891993,3448.7,3448.6,3.58472742]
[1762896090647,0.54351993,3448.7,3448.6,15.6614]
[1762896090852,0.54351993,3448.7,3448.6,18.56112742]
[1762896091218,0.54351993,3448.7,3448.6,18.96663142]
[1762896091456,0.54351993,3448.7,3448.6,21.61587274]
[1762896092557,0.54450922,3448.7,3448.6,21.61587274]
[1762896092861,0.54450922,3448.7,3448.6,18.96663142]
[1762896093683,0.54450922,3448.7,3448.6,4.46663142]
[1762896093883,0.27351148,3448.7,3448.6,4.92403142]
[1762896094083,0.27351148,3448.7,3448.6,19.42403142]
[1762896094986,0.002,3448.7,3448.6,20.55777222]
[1762896095289,0.002,3448.7,3448.6,23.44932455]
[1762896096151,0.002,3448.7,3448.6,22.99192455]
[1762896096387,0.27356726,3448.7,3448.6,20.09219713]
[1762896096589,0.27356726,3448.7,3448.6,21.85818375]
[1762896096786,1.01473736,3448.7,3448.6,15.590504]
[1762896096993,0.74316726,3448.7,3448.6,18.49023142]
[1762896097366,1.01478813,3448.7,3448.6,18.49023142]
[1762896098250,1.01478813,3448.7,3448.6,15.590504]
[1762896098454,1.46218813,3448.7,3448.6,14.905504]
[1762896098850,1.46218813,3448.7,3448.6,15.590504]
[1762896099054,1.01478813,3448.7,3448.6,15.590504]
[1762896099289,1.01478813,3448.7,3448.6,18.49023142]
[1762896100175,1.01478813,3448.7,3448.6,3.99023142]
[1762896100377,0.54518813,3448.7,3448.6,4.46663142]
[1762896100577,0.54518813,3448.7,3448.6,6.28528146]
[1762896100781,0.54518813,3448.7,3448.6,20.78528146]
[1762896102195,0.27356726,3448.7,3448.6,20.78528146]
[1762896103358,0.27356726,3448.7,3448.6,20.32788146]
[1762896103857,0.74316726,3448.7,3448.6,16.26675404]
[1762896104063,1.46226789,3448.7,3448.6,15.590504]
[1762896104262,1.46226789,3448.7,3448.6,1.090504]
[1762896104861,1.46226789,3448.7,3448.6,6.0148462]
[1762896105996,0.54526789,3448.7,3448.6,9.39097362]
[1762896106195,1.01456789,3448.7,3448.6,9.8148462]
[1762896107015,1.01456789,3448.7,3448.6,12.71457362]
[1762896107216,1.01456789,3448.7,3448.6,9.8148462]
[1762896107423,1.01456789,3448.7,3448.6,12.71457362]
[1762896107717,1.01456789,3448.7,3448.6,9.8148462]
[1762896108218,1.01456789,3448.7,3448.6,24.3148462]
[1762896108622,1.46216789,3448.7,3448.6,24.3138462]
[1762896109217,0.54526789,3448.7,3448.6,27.68997362]
[1762896109421,0.54526789,3448.7,3448.6,24.7902462]
[1762896110227,1.01486789,3448.7,3448.6,24.3138462]
[1762896111110,1.01486789,3448.7,3448.6,19.389504]
[1762896111426,1.01486789,3448.7,3448.6,22.76563142]
[1762896111427,0.54526789,3448.7,3448.6,22.76563142]
[1762896111625,0.54526789,3448.7,3448.6,19.865904]
[1762896111827,0.54526789,3448.7,3448.6,19.389504]
[1762896112319,1.01456789,3448.7,3448.6,19.389504]
[1762896115796,1.01456789,3448.7,3448.6,22.28923142]
[1762896116200,1.01456789,3448.7,3448.6,19.389504]
[1762896118228,1.46216789,3448.7,3448.6,19.389504]
[1762896120527,1.46216789,3448.7,3448.6,3.8]
[1762896120713,4.50822802,3448.7,3448.6,3.8]
[1762896120913,4.50822802,3448.7,3448.6,4.484]
[1762896121631,5.00822802,3448.7,3448.6,4.484]
[1762896122287,4.50822802,3448.7,3448.6,4.484]
[1762896122494,5.00822802,3448.7,3448.6,4.484]
[1762896123437,2.8998956,3448.4,3448.3,0.001]
[1762896123637,3.44766349,3448.4,3448.3,0.001]
[1762896123830,4.44196349,3448.4,3448.3,0.685]
[1762896124035,0.54326789,3448.4,3448.3,0.685]
[1762896124204,0.54326789,3448.4,3448.3,1.579304]
[1762896124531,1.45976789,3448.4,3448.3,1.090504]
[1762896124730,0.96616789,3448.4,3448.3,1.090504]
[1762896124905,0.96616789,3448.4,3448.3,0.001]
[1762896125136,1.45976789,3448.4,3448.3,0.685]
[1762896126231,0.54326789,3448.4,3448.3,0.685]
[1762896126596,0.54326789,3448.4,3448.3,4.485]
[1762896126812,0.96686789,3448.4,3448.3,4.485]
[1762896127211,0.54326789,3448.4,3448.3,4.485]
[1762896127410,0.54326789,3448.4,3448.3,4.9738]
[1762896127597,0.54326789,3448.4,3448.3,4.485]
[1762896127912,0.96686789,3448.4,3448.3,4.485]
[1762896128295,0.54326789,3448.4,3448.3,4.9738]
[1762896128494,0.96686789,3448.4,3448.3,4.485]
[1762896129137,1.45976789,3448.4,3448.3,3.801]
[1762896129336,5.08579817,3448.4,3448.3,3.801]
[1762896129550,5.08579817,3448.4,3448.3,4.485]
[1762896130022,5.08579817,3448.4,3448.3,3.801]
[1762896130223,5.08579817,3448.4,3448.3,4.485]
[1762896130426,5.58579817,3448.4,3448.3,4.485]
[1762896130804,5.58579817,3448.4,3448.3,3.801]
[1762896131024,5.58579817,3448.4,3448.3,4.485]
[1762896132533,5.58579817,3448.4,3448.3,0.685]
[1762896132702,5.58559937,3448.4,3448.3,0.685]
[1762896134198,5.58559937,3448.4,3448.3,0.001]
[1762896134405,5.58559937,3448.4,3448.3,0.685]
[1762896136266,2.19280377,3448.4,3448.3,0.685]
[1762896136420,3.86656469,3448.4,3448.3,0.685]
[1762896136617,0.96666909,3448.4,3448.3,0.685]
[1762896136829,1.45956909,3448.4,3448.3,0.685]
[1762896137029,0.96666909,3448.4,3448.3,0.685]
[1762896137245,3.86656469,3448.4,3448.3,0.685]
[1762896137463,1.45956909,3448.4,3448.3,0.685]
[1762896137612,4.35946469,3448.4,3448.3,0.685]
[1762896139255,0.96666909,3448.4,3448.3,0.685]
[1762896140010,3.86656469,3448.4,3448.3,0.685]
[1762896140244,0.54306909,3448.4,3448.3,1.1738]
[1762896140448,0.54306909,3448.4,3448.3,5.06401809]